bitfinex-derivatives/quotes_BTCF0:USTF0_20251011
["timestamp","ask_amount","ask_price","bid_price","bid_amount"]
[1760206107136,0.03419,111900.0,111890.0,0.12324518]
[1760206107738,0.10601086,111900.0,111890.0,0.12324518]
[1760206108039,0.03419,111900.0,111890.0,0.12324518]
[1760206110441,0.03419,111900.0,111890.0,0.52499138]
[1760206111642,0.10471814,111900.0,111890.0,0.52499138]
[1760206112039,0.10471814,111900.0,111890.0,0.53769138]
[1760206112941,0.10471814,111900.0,111890.0,0.52499138]
[1760206116544,0.17799814,111900.0,111890.0,0.52499138]
[1760206118447,0.17799814,111900.0,111890.0,0.12324518]
[1760206118647,0.17799814,111900.0,111890.0,0.52499138]
[1760206124245,0.14380814,111900.0,111890.0,1.29849138]
[1760206125350,0.07328,111900.0,111890.0,1.29849138]
[1760206125557,0.38248,111920.0,111910.0,0.1189979]
[1760206125756,0.38248,111920.0,111910.0,0.5207441]
[1760206125956,0.3608,111920.0,111910.0,0.9207441]
[1760206126853,0.38248,111930.0,111920.0,0.1108799]
[1760206127053,0.38248,111930.0,111920.0,0.5126261]
[1760206127254,0.02168,111930.0,111920.0,0.5126261]
[1760206127452,0.02168,111930.0,111920.0,0.57607624]
[1760206127760,0.39608,111940.0,111930.0,0.110872]
[1760206128056,0.39608,111940.0,111930.0,0.089252]
[1760206128353,0.124532,111930.0,111920.0,0.02162]
[1760206128556,0.03528,111920.0,111910.0,0.1108864]
[1760206128856,0.39608,111920.0,111910.0,0.56304274]
[1760206130356,0.39608,111920.0,111910.0,0.56404274]
[1760206130856,0.39608,111920.0,111910.0,0.56504274]
[1760206134559,0.03528,111920.0,111910.0,0.56504274]
[1760206134754,0.39608,111920.0,111910.0,0.56504274]
[1760206137457,0.03528,111920.0,111910.0,0.56504274]
[1760206137666,0.39608,111920.0,111910.0,0.56504274]
[1760206141160,0.39608,111920.0,111910.0,0.1128864]
[1760206141362,0.39608,111920.0,111910.0,0.56504274]
[1760206148074,0.03528,111920.0,111910.0,0.56504274]
[1760206148570,0.02168,111920.0,111910.0,0.57808274]
[1760206149064,0.03528,111920.0,111910.0,0.57808274]
[1760206149571,0.03528,111920.0,111910.0,0.56504274]
[1760206157571,0.03528,111920.0,111910.0,0.92584274]
[1760206158372,0.03528,111920.0,111910.0,1.00570674]
[1760206159172,0.03528,111920.0,111910.0,0.92584274]
[1760206159773,0.03528,111920.0,111910.0,1.00570674]
[1760206173583,0.03528,111920.0,111910.0,1.01874674]
[1760206173883,0.02168,111920.0,111910.0,1.01874674]
[1760206177485,0.03443,111920.0,111910.0,1.01874674]
[1760206178884,0.03443,111920.0,111910.0,1.00570674]
[1760206183390,0.03443,111920.0,111910.0,0.64490674]
[1760206183892,0.39523,111920.0,111910.0,0.64490674]
[1760206184392,0.03443,111920.0,111910.0,0.64490674]
[1760206187494,0.03443,111920.0,111910.0,0.59476392]
[1760206191104,0.03443,111920.0,111910.0,0.1927504]
[1760206191401,0.03443,111920.0,111910.0,0.59476392]
[1760206202608,0.02168,111920.0,111910.0,0.60780392]
[1760206202905,0.03432,111920.0,111910.0,0.60780392]
[1760206206609,0.02168,111920.0,111910.0,0.60780392]
[1760206208504,0.16847861,111930.0,111920.0,0.1247699]
[1760206208709,0.14541861,111930.0,111920.0,0.88758342]
[1760206209003,0.14541861,111930.0,111920.0,1.28758342]
[1760206209004,0.07326,111930.0,111920.0,1.28758342]
[1760206209401,0.07326,111930.0,111920.0,1.3999143]
[1760206211712,0.09632,111930.0,111920.0,0.99790078]
[1760206212010,0.09632,111930.0,111920.0,1.3999143]
[1760206212209,0.07326,111930.0,111920.0,1.3999143]
[1760206213111,0.07326,111930.0,111920.0,1.28758342]
[1760206225516,0.07326,111930.0,111920.0,1.36773146]
[1760206226516,0.07326,111930.0,111920.0,1.28758342]
[1760206227819,0.07326,111930.0,111920.0,1.36771345]
[1760206228112,0.0963,111930.0,111920.0,0.8855699]
[1760206228417,0.0963,111930.0,111920.0,1.28758342]
[1760206230319,0.07326,111930.0,111920.0,1.28758342]
[1760206230617,0.07326,111930.0,111920.0,0.92678342]
[1760206230818,0.07326,111930.0,111920.0,1.28758342]
[1760206232417,0.10878453,111940.0,111930.0,0.1122619]
[1760206232615,0.10878453,111940.0,111930.0,0.95524122]
[1760206233720,0.10878453,111940.0,111930.0,0.5532277]
[1760206234921,0.18203453,111940.0,111930.0,0.5532277]
[1760206244928,0.18203453,111940.0,111930.0,0.4730619]
[1760206246828,0.18203453,111940.0,111930.0,0.55339442]
[1760206249538,0.18203453,111940.0,111930.0,1.00552183]
[1760206249838,0.18203453,111940.0,111930.0,0.55339442]
[1760206250039,0.18203453,111940.0,111930.0,1.00552183]
[1760206251538,1.48420594,111940.0,111930.0,0.08033252]
[1760206251741,0.1250519,111930.0,111920.0,0.1926634]
[1760206252040,0.1121999,111920.0,111910.0,0.55181692]
[1760206252340,0.48792741,111920.0,111910.0,0.19101692]
[1760206252731,0.84872741,111920.0,111910.0,0.19101692]
[1760206253542,0.84872741,111920.0,111910.0,0.19201692]
[1760206253840,0.84872741,111920.0,111910.0,0.19301692]
[1760206256946,0.93798731,111920.0,111910.0,0.19301692]
[1760206258142,1.33798731,111920.0,111910.0,0.002]
[1760206260651,1.69878731,111920.0,111910.0,0.002]
[1760206261653,1.69878731,111920.0,111910.0,0.02342]
[1760206262649,1.69878731,111920.0,111910.0,0.002]
[1760206262851,1.69878731,111920.0,111910.0,0.02342]
[1760206263046,1.69878731,111920.0,111910.0,0.002]
[1760206263447,1.2466599,111920.0,111910.0,0.02342]
[1760206263650,1.69878731,111920.0,111910.0,0.02342]
[1760206264347,1.69878731,111920.0,111910.0,0.002]
[1760206265852,1.69878731,111920.0,111910.0,0.001]
[1760206266655,0.1250679,111910.0,111900.0,0.1106958]
[1760206266953,0.93799531,111910.0,111900.0,0.1106958]
[1760206267855,0.93799531,111910.0,111900.0,0.02142]
[1760206269355,0.1250758,111900.0,111890.0,0.57193199]
[1760206269653,0.4858758,111900.0,111890.0,0.57193199]
[1760206269854,0.93800321,111900.0,111890.0,0.57193199]
[1760206270552,0.4858758,111900.0,111890.0,0.57193199]
[1760206271256,0.93800321,111900.0,111890.0,0.57193199]
[1760206271550,0.1248238,111890.0,111880.0,0.11242086]
[1760206271752,0.93775121,111890.0,111880.0,7.196e-05]
[1760206272152,0.4856238,111890.0,111880.0,0.02313196]
[1760206272349,0.4856238,111890.0,111880.0,0.11242376]
[1760206272548,0.93775121,111890.0,111880.0,0.11242376]
[1760206272951,0.93775121,111890.0,111880.0,0.11342376]
[1760206273657,0.93775121,111890.0,111880.0,0.11442376]
[1760206281766,0.93775121,111890.0,111880.0,0.09136376]
[1760206281967,1.01103121,111890.0,111880.0,0.09136376]
[1760206283567,1.01103121,111890.0,111880.0,0.00207196]
[1760206283766,1.41103121,111890.0,111880.0,0.00207196]
[1760206285065,1.41103121,111890.0,111880.0,0.00107196]
[1760206285666,1.41103121,111890.0,111880.0,7.196e-05]
[1760206285865,0.1248318,111880.0,111870.0,0.09822312]
[1760206286067,0.93775921,111880.0,111870.0,0.09822312]
[1760206286866,0.93785472,111880.0,111870.0,0.09822312]
[1760206288868,0.48572731,111880.0,111870.0,0.12128312]
[1760206289168,0.93785472,111880.0,111870.0,0.09822312]
[1760206289469,0.93785472,111880.0,111870.0,0.12128312]
[1760206291663,0.48572731,111880.0,111870.0,0.12128312]
[1760206291868,0.93785472,111880.0,111870.0,0.12128312]
[1760206294371,0.48572731,111880.0,111870.0,0.12128312]
[1760206294672,0.93785472,111880.0,111870.0,0.12128312]
[1760206295976,0.03554,111860.0,111850.0,0.38386]
[1760206296173,0.48766741,111860.0,111850.0,0.12131765]
[1760206297279,0.48766741,111860.0,111850.0,0.12231765]
[1760206297478,0.48766741,111860.0,111850.0,0.57444506]
[1760206297479,0.03554,111860.0,111850.0,0.57444506]
[1760206297980,0.48766741,111860.0,111850.0,0.57544506]
[1760206298683,0.48766741,111860.0,111850.0,0.57444506]
[1760206298976,0.03554,111860.0,111850.0,0.57544506]
[1760206302982,0.02125,111870.0,111860.0,0.0975078]
[1760206303179,0.02125,111870.0,111860.0,0.57176521]
[1760206305980,9.551e-05,111880.0,111870.0,0.1244198]
[1760206306283,1e-08,111880.0,111870.0,1.86980714]
[1760206306783,1e-08,111880.0,111870.0,1.78947462]
[1760206306987,1e-08,111890.0,111880.0,0.1244118]
[1760206307181,1e-08,111890.0,111880.0,1.01749856]
[1760206307380,1e-08,111890.0,111880.0,1.88462803]
[1760206307783,1e-08,111890.0,111880.0,1.99695891]
[1760206308184,1e-08,111890.0,111880.0,1.88462803]
[1760206308585,1e-08,111890.0,111880.0,1.99695891]
[1760206308985,1e-08,111890.0,111880.0,1.88462803]
[1760206309682,1e-08,111890.0,111880.0,1.03250062]
[1760206310083,1e-08,111890.0,111880.0,1.11249201]
[1760206311089,1e-08,111890.0,111880.0,1.0173306]
[1760206311487,1e-08,111890.0,111880.0,1.36932929]
[1760206311786,1e-08,111890.0,111880.0,0.96726624]
[1760206311986,1e-08,111890.0,111880.0,0.88727485]
[1760206313094,1e-08,111890.0,111880.0,1.2893379]
[1760206320399,1e-08,111890.0,111880.0,1.6501379]
[1760206324899,1e-08,111890.0,111880.0,1.73012929]
[1760206326896,0.46826466,111920.0,111910.0,0.0892679]
[1760206327092,0.46826466,111920.0,111910.0,0.1113979]
[1760206327695,0.46826466,111920.0,111910.0,0.12015998]
[1760206328202,0.46926466,111920.0,111910.0,0.12015998]
[1760206328502,0.47026466,111920.0,111910.0,0.12015998]
[1760206331205,0.55952446,111920.0,111910.0,0.12015998]
[1760206335902,0.55952446,111920.0,111910.0,0.03089208]
[1760206336109,0.55952446,111920.0,111910.0,0.12015988]
[1760206337307,0.55952446,111920.0,111910.0,0.03089208]
[1760206337804,0.03568,111910.0,111900.0,0.1123022]
[1760206338004,0.4857478,111910.0,111900.0,0.02303]
[1760206340310,0.4857478,111910.0,111900.0,0.1123058]
[1760206341215,0.4857478,111910.0,111900.0,0.12147197]
[1760206344412,0.39648,111910.0,111900.0,0.12147197]
[1760206344618,0.03568,111910.0,111900.0,0.52353502]
[1760206345414,0.1249478,111910.0,111900.0,0.52353502]
[1760206345614,0.4857478,111910.0,111900.0,0.52353502]
[1760206347215,0.4857478,111910.0,111900.0,0.12147197]
[1760206353719,0.4857478,111910.0,111900.0,0.03219617]
[1760206353925,0.4857478,111910.0,111900.0,0.12147197]
[1760206354920,0.0892758,111900.0,111890.0,0.16956593]
[1760206355127,0.4857558,111900.0,111890.0,0.19259593]
[1760206355426,0.4857558,111900.0,111890.0,0.12127516]
[1760206357929,0.4857558,111900.0,111890.0,0.03199496]
[1760206358924,1.28781885,111900.0,111890.0,0.00896496]
[1760206359226,0.1249638,111890.0,111880.0,0.19260733]
[1760206359420,0.4857638,111890.0,111880.0,0.19260733]
[1760206360927,0.4857638,111890.0,111880.0,0.1123216]
[1760206361122,0.4857638,111890.0,111880.0,0.19260733]
[1760206361624,1.28782685,111890.0,111880.0,0.08028573]
[1760206362024,0.1250818,111880.0,111870.0,0.08028573]
[1760206362226,0.1250898,111870.0,111860.0,0.19178983]
[1760206363328,0.1250898,111870.0,111860.0,0.20069678]
[1760206363923,0.1250898,111870.0,111860.0,0.20169678]
[1760206364127,0.03579,111870.0,111860.0,0.20169678]
[1760206365331,0.03579,111870.0,111860.0,0.20269678]
[1760206366230,0.03579,111870.0,111860.0,0.12241105]
[1760206369934,0.03579,111870.0,111860.0,0.5244741]
[1760206370935,0.1250898,111870.0,111860.0,0.5244741]
[1760206371136,0.1250898,111870.0,111860.0,0.12241105]
[1760206371433,0.1250898,111870.0,111860.0,0.57509621]
[1760206378028,0.03579,111870.0,111860.0,0.57509621]
[1760206379341,0.03579,111870.0,111860.0,0.12241105]
[1760206379540,0.03579,111870.0,111860.0,0.57509621]
[1760206386241,0.03579,111870.0,111860.0,0.93589621]
[1760206387643,0.03579,111870.0,111860.0,1.01618194]
[1760206388743,0.02288,111870.0,111860.0,1.02938194]
[1760206391451,0.10529796,111880.0,111870.0,0.0892998]
[1760206391748,0.10529796,111880.0,111870.0,1.46725585]
[1760206391749,0.09238796,111880.0,111870.0,1.46725585]
[1760206392046,0.09238796,111880.0,111870.0,1.38697012]
[1760206392741,0.37415,111890.0,111880.0,0.0892918]
[1760206392946,0.02149,111890.0,111880.0,0.57805696]
[1760206393143,0.02149,111890.0,111880.0,0.65834269]
[1760206393749,0.39564,111900.0,111890.0,0.1125838]
[1760206393947,0.39564,111900.0,111890.0,0.56526896]
[1760206394649,0.39564,111900.0,111890.0,0.57796896]
[1760206394948,0.39564,111900.0,111890.0,0.56526896]
[1760206411468,0.46892,111900.0,111890.0,0.56526896]
[1760206412568,0.45557,111900.0,111890.0,0.57796896]
[1760206412874,0.43408,111900.0,111890.0,0.57796896]
[1760206413070,0.45557,111900.0,111890.0,0.57796896]
[1760206414070,0.45557,111900.0,111890.0,0.1252838]
[1760206414276,0.45557,111900.0,111890.0,0.57796896]
[1760206417276,0.45557,111900.0,111890.0,0.65825469]
[1760206417978,0.45557,111900.0,111890.0,0.57796896]
[1760206418777,0.45557,111900.0,111890.0,0.65825469]
[1760206428180,0.46881,111900.0,111890.0,0.65825469]
[1760206428586,0.45557,111900.0,111890.0,0.65825469]
[1760206430389,0.45557,111900.0,111890.0,0.20556953]
[1760206430589,0.45557,111900.0,111890.0,0.65825469]
[1760206431589,0.45557,111900.0,111890.0,0.60770945]
[1760206437804,0.07328,111900.0,111890.0,0.96850945]
[1760206439092,0.07328,111900.0,111890.0,0.88822372]
[1760206440092,0.07328,111900.0,111890.0,0.4860838]
[1760206440292,0.07328,111900.0,111890.0,1.40062374]
[1760206441692,0.07328,111900.0,111890.0,1.28822372]
[1760206441993,0.07328,111900.0,111890.0,1.40062374]
[1760206442293,0.43381466,111920.0,111910.0,0.1204979]
[1760206442294,0.07301466,111920.0,111910.0,0.1204979]
[1760206442496,0.02145,111920.0,111910.0,0.52263782]
[1760206442695,0.09192992,111920.0,111910.0,0.52263782]
[1760206444698,0.09292992,111920.0,111910.0,0.52263782]
[1760206445200,0.09392992,111920.0,111910.0,0.53172857]
[1760206446393,0.07247992,111920.0,111910.0,0.61201567]
[1760206446594,0.09392992,111920.0,111910.0,0.61201567]
[1760206447200,0.09392992,111920.0,111910.0,0.53172857]
[1760206449798,0.09392992,111920.0,111910.0,0.12958865]
[1760206449998,0.10716992,111920.0,111910.0,0.61201567]
[1760206450403,0.10716992,111920.0,111910.0,0.53172857]
[1760206451001,0.09392992,111920.0,111910.0,0.53172857]
[1760206453606,0.10710992,111920.0,111910.0,0.12958865]
[1760206453906,0.10710992,111920.0,111910.0,0.53172857]
[1760206454406,0.09392992,111920.0,111910.0,0.53172857]
[1760206454707,0.09392992,111920.0,111910.0,0.61201567]
[1760206456105,0.59850974,111920.0,111910.0,0.20167575]
[1760206456409,0.95930974,111920.0,111910.0,0.12138865]
[1760206456706,0.55716982,111920.0,111910.0,0.12138865]
[1760206458506,0.46790992,111920.0,111910.0,0.12138865]
[1760206466013,0.10710992,111920.0,111910.0,0.13431865]
[1760206466309,0.09392992,111920.0,111910.0,0.53645857]
[1760206468114,0.09392992,111920.0,111910.0,0.13431865]
[1760206468912,0.09392992,111920.0,111910.0,0.53645857]
[1760206469316,0.09392992,111920.0,111910.0,0.61674567]
[1760206472017,0.07247992,111920.0,111910.0,0.61674567]
[1760206472317,0.09439992,111920.0,111910.0,0.61674567]
[1760206473720,0.07247992,111920.0,111910.0,0.61674567]
[1760206473916,0.09439992,111920.0,111910.0,0.21460575]
[1760206474220,0.09439992,111920.0,111910.0,0.61674567]
[1760206474619,0.10757992,111920.0,111910.0,0.21460575]
[1760206474816,0.09439992,111920.0,111910.0,0.61674567]
[1760206485429,0.09439992,111920.0,111910.0,0.21460575]
[1760206488732,0.10756992,111920.0,111910.0,0.21460575]
[1760206490332,0.10756992,111920.0,111910.0,0.20167575]
[1760206490727,0.46836992,111920.0,111910.0,0.20167575]
[1760206493433,0.46836992,111920.0,111910.0,0.65400034]
[1760206499434,0.92069451,111920.0,111910.0,0.65400034]
[1760206500133,0.92069451,111920.0,111910.0,0.20167575]
[1760206500333,0.92069451,111920.0,111910.0,0.65400034]
[1760206501332,0.03512,111910.0,111900.0,0.1910797]
[1760206501532,0.84824459,111910.0,111900.0,0.1107926]
[1760206502729,0.39592,111910.0,111900.0,0.56311719]
[1760206503126,0.39592,111910.0,111900.0,0.57194682]
[1760206507535,0.84824459,111910.0,111900.0,0.57194682]
[1760206510638,0.84824459,111910.0,111900.0,0.11962223]
[1760206512238,0.84824459,111910.0,111900.0,0.57194682]
[1760206513038,0.84824459,111910.0,111900.0,0.65223392]
[1760206514635,0.39592,111910.0,111900.0,0.66493392]
[1760206514837,0.38275,111910.0,111900.0,0.66493392]
[1760206515043,0.46621992,111920.0,111910.0,0.1247479]
[1760206515338,0.46621992,111920.0,111910.0,0.57707249]
[1760206515534,0.10541992,111920.0,111910.0,0.57707249]
[1760206516340,0.10741992,111920.0,111910.0,0.56414249]
[1760206517038,0.19667982,111920.0,111910.0,0.56414249]
[1760206518139,0.64900441,111920.0,111910.0,0.56414249]
[1760206519941,0.72226441,111920.0,111910.0,0.56414249]
[1760206524642,0.26993982,111920.0,111910.0,0.56414249]
[1760206524847,0.18067992,111920.0,111910.0,0.56414249]
[1760206525046,0.18067992,111920.0,111910.0,0.57707249]
[1760206527248,0.18067992,111920.0,111910.0,0.56414249]
[1760206528148,0.26993982,111920.0,111910.0,0.56414249]
[1760206528748,0.72226441,111920.0,111910.0,0.56414249]
[1760206529749,0.26993982,111920.0,111910.0,0.56414249]
[1760206531853,0.18067992,111920.0,111910.0,0.56414249]
[1760206534050,0.26993982,111920.0,111910.0,0.56414249]
[1760206536247,0.16750992,111920.0,111910.0,0.57707249]
[1760206536453,0.16750992,111920.0,111910.0,0.93787249]
[1760206536951,0.16750992,111920.0,111910.0,1.01815959]
[1760206537654,0.16650992,111920.0,111910.0,1.01815959]
[1760206538357,0.16550992,111920.0,111910.0,1.01815959]
[1760206540657,0.07326,111920.0,111910.0,1.01815959]
[1760206540859,0.07326,111920.0,111910.0,1.41815959]
[1760206542358,0.07326,111920.0,111910.0,1.01815959]
[1760206542559,0.07326,111920.0,111910.0,1.41815959]
[1760206542758,0.07326,111920.0,111910.0,1.01815959]
[1760206544861,0.07326,111920.0,111910.0,0.93787249]
[1760206545461,0.09508,111920.0,111910.0,0.93787249]
[1760206547065,0.07326,111920.0,111910.0,0.93787249]
[1760206547660,0.09572,111920.0,111910.0,0.93787249]
[1760206554068,0.09572,111920.0,111910.0,1.01815959]
[1760206555566,0.09572,111920.0,111910.0,1.04819712]
[1760206559673,0.09572,111920.0,111910.0,0.68739712]
[1760206559866,0.09572,111920.0,111910.0,1.04819712]
[1760206560061,0.09572,111920.0,111910.0,0.96791002]
[1760206571274,0.09572,111920.0,111910.0,1.04824562]
[1760206571672,0.09572,111920.0,111910.0,0.96791002]
[1760206572175,0.09572,111920.0,111910.0,1.04824562]
[1760206574876,1.08105202,111920.0,111910.0,0.0803356]
[1760206575180,0.9594899,111920.0,111910.0,0.0803356]
[1760206575479,0.9594899,111920.0,111910.0,0.1017156]
[1760206576581,0.9594899,111920.0,111910.0,0.1909835]
[1760206582881,0.9594899,111920.0,111910.0,0.67334562]
[1760206583081,0.9594899,111920.0,111910.0,0.1909835]
[1760206585386,0.9594899,111920.0,111910.0,0.67334562]
[1760206585685,0.9594899,111920.0,111910.0,0.1909835]
[1760206585887,0.9594899,111920.0,111910.0,0.1106479]
[1760206595590,0.9594899,111920.0,111910.0,0.1909835]
[1760206597785,0.85652,111920.0,111910.0,0.2036835]
[1760206598191,0.85652,111920.0,111910.0,0.1233479]
[1760206598485,0.87023,111920.0,111910.0,0.1233479]
[1760206598992,0.87023,111920.0,111910.0,0.1106479]
[1760206600594,0.87023,111920.0,111910.0,0.59301002]
[1760206602296,0.5594899,111920.0,111910.0,0.59301002]
[1760206602496,0.5594899,111920.0,111910.0,0.1106479]
[1760206604296,0.5594899,111920.0,111910.0,0.1909835]
[1760206608799,0.5594899,111920.0,111910.0,0.2036835]
[1760206610105,0.5594899,111920.0,111910.0,0.68604562]
[1760206610906,0.1986899,111920.0,111910.0,0.68604562]
[1760206611101,0.5594899,111920.0,111910.0,0.68604562]
[1760206611604,0.5594899,111920.0,111910.0,0.1909835]
[1760206615404,0.5594899,111920.0,111910.0,0.73375579]
[1760206621215,0.5594899,111920.0,111910.0,0.1909835]
[1760206621414,0.5594899,111920.0,111910.0,0.73375579]
[1760206622212,0.5594899,111920.0,111910.0,0.74645579]
[1760206622416,0.47023,111920.0,111910.0,0.74645579]
[1760206622713,0.45652,111920.0,111910.0,0.74645579]
[1760206622914,0.07326,111920.0,111910.0,1.50725579]
[1760206623718,0.07326,111920.0,111910.0,1.42692019]
[1760206623919,0.07326,111920.0,111910.0,1.50724931]
[1760206625422,0.07326,111920.0,111910.0,1.14644931]
[1760206625617,0.08642,111920.0,111910.0,1.14644931]
[1760206626121,0.07326,111920.0,111910.0,1.14644931]
[1760206626619,0.09597,111920.0,111910.0,0.60367702]
[1760206626821,0.09597,111920.0,111910.0,1.14644931]
[1760206628023,0.10913,111920.0,111910.0,1.14644931]
[1760206628820,0.09597,111920.0,111910.0,1.14644931]
[1760206636420,0.07326,111920.0,111910.0,1.14644931]
[1760206638932,0.07326,111920.0,111910.0,1.50724931]
[1760206640533,0.07326,111920.0,111910.0,1.14644931]
[1760206640733,0.07326,111920.0,111910.0,1.50724931]
[1760206641635,0.08608,111920.0,111910.0,1.49454931]
[1760206649141,0.08608,111920.0,111910.0,1.13374931]
[1760206653040,1.50173219,111920.0,111910.0,0.08032912]
[1760206653448,0.1249079,111910.0,111900.0,0.74246374]
[1760206653650,0.4857079,111910.0,111900.0,0.74246374]
[1760206657346,0.5589779,111910.0,111900.0,0.74246374]
[1760206658344,0.1981779,111910.0,111900.0,0.74246374]
[1760206659350,0.1981779,111910.0,111900.0,0.66213462]
[1760206659649,0.10891,111910.0,111900.0,0.66213462]
[1760206661048,0.10891,111910.0,111900.0,0.74242566]
[1760206661643,0.9589779,111910.0,111900.0,0.65315296]
[1760206661843,0.1252559,111900.0,111890.0,0.13511002]
[1760206662044,1.02882819,111900.0,111890.0,0.03179055]
[1760206663043,0.1252639,111890.0,111880.0,0.02271]
[1760206663243,0.66803619,111890.0,111880.0,0.02271]
[1760206663452,0.66803619,111890.0,111880.0,0.03146673]
[1760206663854,1.02883619,111890.0,111880.0,0.03146673]
[1760206664755,0.1252718,111880.0,111870.0,0.10300104]
[1760206665054,1.02884409,111880.0,111870.0,0.02271]
[1760206665453,1.0989135,111880.0,111870.0,0.02271]
[1760206665646,1.0989135,111880.0,111870.0,0.56548229]
[1760206665949,0.1242798,111870.0,111860.0,0.1120178]
[1760206666152,1.02785209,111870.0,111860.0,0.1120178]
[1760206666355,1.02785209,111870.0,111860.0,0.03154992]
[1760206667554,1.42785209,111870.0,111860.0,0.03154992]
[1760206668059,0.8850798,111870.0,111860.0,0.66363001]
[1760206668557,0.4850798,111870.0,111860.0,0.66363001]
[1760206669154,0.4850798,111870.0,111860.0,0.67639001]
[1760206669852,0.39678,111870.0,111860.0,0.67639001]
[1760206670353,0.46684941,111880.0,111870.0,0.1247698]
[1760206670548,0.38358,111880.0,111870.0,1.21031438]
[1760206670754,0.39678,111890.0,111880.0,0.1120018]
[1760206670957,0.39678,111890.0,111880.0,0.65477409]
[1760206671157,0.03598,111890.0,111880.0,0.65477409]
[1760206672156,0.02278,111890.0,111880.0,0.66338409]
[1760206672852,0.39678,111900.0,111890.0,0.1247539]
[1760206673058,0.45685,111910.0,111900.0,0.1247459]
[1760206673255,0.09605,111910.0,111900.0,1.21029048]
[1760206673562,0.07327,111910.0,111900.0,1.57109048]
[1760206674158,0.07327,111910.0,111900.0,1.97109048]
[1760206675459,0.07327,111910.0,111900.0,1.3679641]
[1760206675956,0.07427,111910.0,111900.0,1.3679641]
[1760206679456,0.07327,111910.0,111900.0,1.3679641]
[1760206680664,0.08647,111910.0,111900.0,1.3679641]
[1760206680867,0.07327,111910.0,111900.0,1.3679641]
[1760206683464,0.07827,111910.0,111900.0,1.3679641]
[1760206684064,0.07327,111910.0,111900.0,1.3679641]
[1760206684264,0.07827,111910.0,111900.0,1.3679641]
[1760206693579,0.1132,111910.0,111900.0,0.9552041]
[1760206697387,0.03993,111910.0,111900.0,0.9552041]
[1760206699288,0.03993,111910.0,111900.0,1.03549514]
[1760206699584,0.03993,111910.0,111900.0,0.9552041]
[1760206699981,0.005,111910.0,111900.0,0.9679641]
[1760206700376,0.005,111910.0,111900.0,1.44825514]
[1760206702589,0.005,111910.0,111900.0,1.3679641]
[1760206705391,0.38282,111940.0,111930.0,0.0892519]
[1760206705595,0.38282,111940.0,111930.0,0.6073001]
[1760206705994,0.45505062,111940.0,111930.0,0.68756717]
[1760206706293,0.45505062,111940.0,111930.0,0.6073001]
[1760206706989,0.46005062,111940.0,111930.0,0.68756717]
[1760206707384,0.46105062,111940.0,111930.0,0.68756717]
[1760206707587,0.46105062,111940.0,111930.0,0.6073001]
[1760206707994,0.10025062,111940.0,111930.0,0.6073001]
[1760206708395,0.10025062,111940.0,111930.0,0.68756717]
[1760206708698,0.10025062,111940.0,111930.0,0.6073001]
[1760206709385,0.10025062,111940.0,111930.0,0.68756717]
[1760206710386,0.10025062,111940.0,111930.0,0.6073001]
[1760206714696,0.10025062,111940.0,111930.0,0.61631484]
[1760206718296,0.006,111940.0,111930.0,0.97711484]
[1760206718997,0.39573,111970.0,111960.0,0.112098]
[1760206719297,0.46597147,111970.0,111960.0,0.6031262]
[1760206720194,0.46597147,111970.0,111960.0,0.5945162]
[1760206720497,0.47097147,111970.0,111960.0,0.5945162]
[1760206720697,0.47297147,111970.0,111960.0,0.5945162]
[1760206722599,0.47297147,111970.0,111960.0,0.6031262]
[1760206723398,0.47297147,111970.0,111960.0,0.5945162]
[1760206725900,0.47297147,111970.0,111960.0,0.6031262]
[1760206726104,0.11217147,111970.0,111960.0,0.6031262]
[1760206726901,0.11217147,111970.0,111960.0,0.5945162]
[1760206727402,0.47297147,111970.0,111960.0,0.5945162]
[1760206727597,0.01357,111960.0,111950.0,0.1123894]
[1760206727802,0.39573,111960.0,111950.0,0.1123894]
[1760206729603,0.39773,111960.0,111950.0,0.1123894]
[1760206731205,0.486958,111960.0,111950.0,0.02316]
[1760206731400,0.124166,111950.0,111940.0,0.02316]
[1760206731707,0.484966,111950.0,111940.0,0.02316]
[1760206731897,0.124174,111940.0,111930.0,0.12142334]
[1760206732101,0.124174,111940.0,111930.0,0.60384154]
[1760206732505,0.03493,111940.0,111930.0,0.60384154]
[1760206733400,0.03593,111940.0,111930.0,0.60384154]
[1760206733601,0.001,111940.0,111930.0,0.97740154]
[1760206736707,0.001,111940.0,111930.0,1.05766861]
[1760206737099,0.001,111940.0,111930.0,1.45766861]
[1760206737401,0.001,111940.0,111930.0,1.43733008]
[1760206737606,0.001,111940.0,111930.0,1.97967682]
[1760206740405,0.001,111940.0,111930.0,2.05980949]
[1760206741401,0.001,111940.0,111930.0,1.65980949]
[1760206750413,0.001,111940.0,111930.0,1.57967682]
[1760206754124,0.001,111940.0,111930.0,0.49498334]
[1760206754420,0.001,111940.0,111930.0,1.57967682]
[1760206754613,0.001,111940.0,111930.0,1.69207684]
[1760206757818,0.45294147,111970.0,111960.0,0.1200381]
[1760206758013,0.45294147,111970.0,111960.0,1.20473158]
[1760206758914,0.45294147,111970.0,111960.0,1.28493587]
[1760206759117,0.49414147,111970.0,111960.0,1.20473158]
[1760206759318,0.47224147,111970.0,111960.0,1.20173158]
[1760206760623,0.47224147,111970.0,111960.0,1.28187769]
[1760206766528,0.07224147,111970.0,111960.0,1.28187769]
[1760206769630,0.07224147,111970.0,111960.0,1.20173158]
[1760206770427,0.002,111970.0,111960.0,1.64267769]
[1760206773926,0.002,111970.0,111960.0,2.04267769]
[1760206776135,0.07266154,111980.0,111970.0,0.1249901]
[1760206776435,0.39627,111990.0,111980.0,0.1114121]
[1760206776634,0.3827,111990.0,111980.0,0.66732884]
[1760206776833,0.3608,111990.0,111980.0,0.66732884]
[1760206777133,0.3827,111990.0,111980.0,0.66732884]
[1760206777435,0.39553,111990.0,111980.0,0.65375884]
[1760206778035,0.39753,111990.0,111980.0,0.65375884]
[1760206778530,0.3847,111990.0,111980.0,0.65375884]
[1760206778736,0.39753,111990.0,111980.0,0.65375884]
[1760206779036,0.46834406,111990.0,111980.0,0.65375884]
[1760206779836,0.10754406,111990.0,111980.0,0.65375884]
[1760206781536,0.09471406,111990.0,111980.0,0.66729884]
[1760206782639,0.10732406,111990.0,111980.0,0.66729884]
[1760206782839,0.46812406,111990.0,111980.0,0.66729884]
[1760206786337,0.10732406,111990.0,111980.0,0.66729884]
[1760206786544,0.09471406,111990.0,111980.0,0.66729884]
[1760206786738,0.07281406,111990.0,111980.0,0.66729884]
[1760206787245,0.10665406,111990.0,111980.0,0.1114121]
[1760206787443,0.46745406,111990.0,111980.0,0.65375884]
[1760206787944,0.10665406,111990.0,111980.0,0.65375884]
[1760206788345,0.39664,111990.0,111980.0,0.65375884]
[1760206788944,0.46761104,111990.0,111980.0,0.65375884]